Cogmind - Beta 16 @@@ ROGUE MODE // 2025.12.01 @ 17:54:00 Player: Skysub Result: Destroyed self with Grenade Launcher Performance ------------- Evolutions (0) 0 Regions Visited (3) 600 Robots Destroyed (45) 225 Value Destroyed (1076) 1076 Prototype IDs (0) 0 Alien Tech Used (0) 0 Bonus (0) 0 TOTAL SCORE: 1901 Bonus ------- None Cogmind --------- Core Integrity 0/250 Matter 218/300 Energy 84/100 System Corruption 0% Temperature Cool (0) Movement Treading (480) Ox4 Location -10/Subcaves Parts ------- > --- POWER (1) -------- (None) > --- PROPULSION (2) --- Light Treads Wheel > --- UTILITY (2) ------ Huge Storage Unit Light Armor Plating > --- WEAPON (2) ------- Light Assault Rifle Grenade Launcher > --- INVENTORY (25) --- Arachnoskeleton Subdweller Monowheel Improved Terrain Scanner Scrap Shield Medium Laser Subdweller Machine Gun Mining Laser SUBCON Basin (Full) Peak State ------------ > --- POWER ------------ (None) > --- PROPULSION ------- Light Treads Wheel > --- UTILITY ---------- Huge Storage Unit Light Armor Plating > --- WEAPON ----------- Light Assault Rifle Subdweller Machine Gun > --- INVENTORY -------- Arachnoskeleton Subdweller Monowheel Improved Terrain Scanner Scrap Shield Medium Laser Grenade Launcher Mining Laser SUBCON Basin [Rating: 28] Favorites ----------- Power Ion Engine Engine Ion Engine Power Core Light Nuclear Core Propulsion Wheel Treads Light Treads Wheel Wheel Utility Huge Storage Unit Device Seismic Detector Storage Huge Storage Unit Protection Core Shielding Weapon Light Assault Rifle Energy Gun Medium Laser Ballistic Gun Light Assault Rifle Ballistic Cannon Bore Cannon Launcher Grenade Launcher Special Weapon Mining Laser Build | -11 -10 -10 -10 ------- Run | Yrd Mat Min Sub Slots Evolved . | . . . . Power . | . . . . Propulsion . | . . . . Utility . | . . . . Weapon . | . . . . Parts Attached 36 | 7 8 5 16 Power 4 | 1 1 1 1 Engine 3 | 1 1 1 . Core 1 | . . . 1 Reactor . | . . . . Propulsion 10 | 2 4 1 3 Treads 3 | 2 1 . . Leg . | . . . . Wheel 7 | . 3 1 3 Hover . | . . . . Flight . | . . . . Utility 7 | 2 1 . 4 Device 2 | 1 . . 1 Storage 2 | 1 1 . . Processor . | . . . . Hackware . | . . . . Protection 3 | . . . 3 Artifact . | . . . . Weapon 15 | 2 2 3 8 Energy Gun 3 | 1 . . 2 Energy Cannon . | . . . . Ballistic Gun 7 | 1 . 3 3 Ballistic Cannon 2 | . . . 2 Launcher 2 | . 1 . 1 Special Weapon 1 | . 1 . . Impact Weapon . | . . . . Slashing Weapon . | . . . . Piercing Weapon . | . . . . Special Melee Weapon . | . . . . Unidentified Prototypes . | . . . . Parts Lost 20 | . 5 4 11 Power 3 | . 1 . 2 Propulsion 7 | . 3 . 4 Utility 2 | . . 1 1 Weapon 8 | . 1 3 4 Highest Loss Streak 6 | . 3 2 6 To Critical Strikes 2 | . . . 2 Average Backups 14 | 3 11 17 16 Power . | . . 1 . Propulsion 2 | 1 2 2 2 Utility 7 | . 6 8 7 Weapon 4 | 1 2 4 6 Tool/Special . | . . . . Unused Backups 14 | . 3 . 11 Power . | . . . . Propulsion 3 | . 1 . 2 Utility 9 | . 1 . 8 Weapon 2 | . 1 . 1 Tool/Special . | . . . . Average Slot Usage (%) 94 | . 99 98 90 Engine 8 | . 13 14 5 Treads 10 | . 15 11 8 Wheel 16 | . 11 16 19 Device 8 | . 14 14 4 Storage 14 | . 14 14 14 Protection 5 | . . . 9 Energy Gun 7 | . 13 . 4 Ballistic Gun 15 | . 14 26 14 Ballistic Cannon 2 | . . . 5 Special Weapon 1 | . . . 1 Peak Build Rating 28 | 7 8 9 28 Average Rating 11 | 4 7 8 14 On Entrance 5 | . 7 8 7 Avg Prop Armor Cover (%) 13 | . 13 13 14 Naked Turns . | . . . . Heaviest Build 97 | 14 89 88 97 Greatest Support 40 | 40 40 20 20 Greatest Overweight (x) 9 | . 8 8 9 Average Overweight (x) 5 | . 6 7 4 Largest Inventory Capacity 25 | 8 25 25 25 Average Capacity 24 | 7 23 25 25 Most Carried 25 | 7 14 19 25 Average Carried 16 | 4 11 17 19 Final Capacity 25 | 8 25 25 25 Final Carried 25 | 7 14 19 25 Class Distribution -------------------- 74% | Mutant 14% | Derelict-Mutant 11% | Scavenger-Mutant Dominant Class ---------------- Mutant | -10/Materials Scavenger-Mutant | -10/Mines Mutant | -10/Subcaves Resources | -11 -10 -10 -10 ----------- Run | Yrd Mat Min Sub Matter Collected 1368 | 276 99 221 772 Remotely . | . . . . Salvage Created 1122 | 122 443 49 508 Parts 100 | 15 40 6 39 Haulers Intercepted . | . . . . Recyclers Shooed 1 | . 1 . . Parts Field Recycled . | . . . . Retrieved Matter . | . . . . Parts Self-Destructed 15 | . . . 15 Prevented . | . . . . Parts Restored . | . . . . Kills | -11 -10 -10 -10 ------- Run | Yrd Mat Min Sub Combat Hostiles Destroyed 35 | . 14 3 18 Guns 20 | . 8 3 9 Cannons 4 | . . . 4 AOE 11 | . 6 . 5 Classes Destroyed 10 | 2 5 . 3 Worker 1 | . 1 . . Builder 2 | . 2 . . Tunneler 3 | 3 . . . Recycler 2 | 1 1 . . Watcher 2 | . 2 . . Swarmer 13 | . 6 3 4 Grunt 8 | . 8 . . Sentry 1 | . . . 1 Cobbler 1 | . . . 1 Subdweller 13 | . . . 13 Best Kill Streak 11 | 4 11 3 4 Combat Bots Only 6 | . 6 3 4 Max Kills in Single Turn 3 | 1 2 1 3 Gunslinging . | . . . . Exploded 3 | . 2 . 3 Melee . | . . . . Uniques/NPCs Destroyed . | . . . . Combat | -11 -10 -10 -10 -------- Run | Yrd Mat Min Sub Hostile Shots Fired 192 | . 73 28 91 Missed 54 | . 24 7 23 Hits 138 | . 49 21 68 Melee 8 | . . 8 . Projectile 130 | . 49 13 68 Critical Strikes 6 | . 2 . 4 Damage Taken 2326 | . 627 328 1371 Core 259 | . 70 36 153 Absorbed by Shields . | . . . . Redirected to Shielding 16 | . . . 16 Core Remaining (%) 100 | 100 . . . Volleys Fired 159 | 6 54 6 93 Largest 2 | 2 2 2 2 Hottest 150 | 70 100 70 150 Shots Fired 256 | 12 94 9 141 Gun 183 | 12 81 9 81 Cannon 51 | . . . 51 Launcher 16 | . 11 . 5 Special 6 | . 2 . 4 Kinetic 157 | 6 40 7 104 Thermal 83 | 6 43 2 32 Explosive 16 | . 11 . 5 Electromagnetic . | . . . . Robot Hit Streak 10 | 4 7 5 10 Robot Miss Streak 5 | 2 5 1 4 Penetration Max 1 | . . . 1 Secondary Targets 3 | . 2 . 1 Max Gunslinging Chain 1 | . 1 . 1 Shots Hit Robots 145 | 7 55 6 77 Core Hits 72 | 5 34 4 29 Critical Kills 2 | . . . 2 Critical Parts Destroyed . | . . . . Critical Strikes 17 | . 3 . 14 Burn 6 | . 3 . 3 Destroy 11 | . . . 11 Melee Attacks . | . . . . Impact . | . . . . Slashing . | . . . . Piercing . | . . . . Sneak Attacks . | . . . . Combat Hostiles . | . . . . Follow-up Attacks . | . . . . Damage Inflicted 3069 | 81 1156 55 1777 Guns 1387 | 79 534 55 719 Cannons 721 | . . . 721 Explosions 959 | . 622 . 337 Melee . | . . . . Ramming 2 | 2 . . . Kinetic 1420 | 17 144 43 1216 Thermal 688 | 62 390 12 224 Explosive 959 | . 622 . 337 Electromagnetic . | . . . . Impact . | . . . . Slashing . | . . . . Piercing . | . . . . Highest Corruption . | . . . . Average Corruption . | . . . . Corruption Purged . | . . . . Corruption Blocked . | . . . . Overload Shots 6 | . . . 6 Effects 3 | . . . 3 Energy Bleed 2 | . . . 2 Short Circuit 1 | . . . 1 Overflow Damage 57 | . 49 . 8 Projectiles . | . . . . Explosions 57 | . 49 . 8 Melee . | . . . . Knockbacks 17 | . . . 17 Impact . | . . . . Kinetic 16 | . . . 16 Secondary 1 | . . . 1 Self-Inflicted Damage 173 | . 129 . 44 Shots 11 | . 9 . 2 Rammed 1 | 1 . . . Targets Rammed 1 | 1 . . . Kicked . | . . . . Crushed . | . . . . Highest Temperature 163 | 100 163 40 120 Average Temperature 46 | 47 47 23 45 Received Heat Transfer 405 | . 204 . 201 Siege Activations . | . . . . Martial Activations . | . . . . Shielding Activations . | . . . . Robots Disrupted . | . . . . Combat Hostiles . | . . . . Robots Corrupted . | . . . . Combat Hostiles . | . . . . Parts Fried . | . . . . Impact Corruptions . | . . . . Robots Melted . | . . . . Combat Hostiles . | . . . . Parts Melted 5 | . 3 . 2 Heat Transferred 2331 | 185 1369 37 740 Parts Sabotaged . | . . . . Parts Stolen . | . . . . Parts Stripped . | . . . . Power Chain Reactions . | . . . . Alert | -11 -10 -10 -10 ------- Run | Yrd Mat Min Sub Maximum Alert Level 1 | . 1 . . Low Security (%) 97 | 100 96 100 . Level 1 2 | . 3 . . Level 2 . | . . . . Level 3 . | . . . . Level 4 . | . . . . Level 5 . | . . . . High Security . | . . . . Max Security . | . . . . Peak Influence 211 | 20 211 117 . Initial 52 | . . 52 . Average 81 | 4 97 49 . Influence Increases 775 | 20 525 85 145 Destroy 0b10 Robot/C 440 | . 280 60 100 Destroy 0b10 Robot/NC 50 | 20 30 . . Destroy Leader 74 | . 64 10 . Successful Hack 21 | . 21 . . Select Force Hacks 30 | . 30 . . Disable Machine 30 | . 30 . . Destroy Structure 40 | . 40 . . Partial Spotted 15 | . . 15 . Lose Combat Pursuer 75 | . 30 . 45 Influence Decreases 695 | 20 389 221 65 Entered New Map 84 | . . 84 . Time Decay 531 | 20 329 117 65 Lost Part 70 | . 50 20 . Lost Ally 10 | . 10 . . Squads Dispatched 3 | . 3 . . Investigation 1 | . 1 . . Extermination . | . . . . Reinforcement 2 | . 2 . . Assault . | . . . . Garrison . | . . . . Intercept . | . . . . Searches Triggered . | . . . . Construction Impeded . | . . . . Haulers Reinforced . | . . . . Active Scanning Responses . | . . . . Cargo Convoy Interrupts . | . . . . Stealth | -11 -10 -10 -10 --------- Run | Yrd Mat Min Sub Distress Signals . | . . . . Communications Jammed . | . . . . Distress Signals . | . . . . Times Spotted 49 | . 24 6 19 Peak Tracking Total 7 | . 7 3 6 Tactical Retreats 3 | . 1 . 2 Traps | -11 -10 -10 -10 ------- Run | Yrd Mat Min Sub Traps Triggered . | . . . . Indirectly . | . . . . Trap Hack Attempts . | . . . . Triggered . | . . . . Disarmed . | . . . . Reprogrammed . | . . . . Reused . | . . . . Traps Extracted . | . . . . Installed . | . . . . Triggered . | . . . . Machines | -11 -10 -10 -10 ---------- Run | Yrd Mat Min Sub Machines Disabled 2 | . 2 . . Max in Single Turn 1 | . 1 . . Machines Repaired . | . . . . Machines Dismantled . | . . . . Machines Sabotaged . | . . . . Overloaded Fab Kills . | . . . . Hacking | -11 -10 -10 -10 --------- Run | Yrd Mat Min Sub Machines Accessed 9 | . 6 . 3 Terminals 5 | . 5 . . Fabricators . | . . . . Repair Stations . | . . . . Recycling Units 1 | . 1 . . Scanalyzers . | . . . . Garrison Access . | . . . . Total Hacks 31 | . 24 . 7 Successful 21 | . 14 . 7 Failed 10 | . 10 . . Catastrophic . | . . . . Database Lockouts . | . . . . Manual 23 | . 23 . . Terminals 22 | . 22 . . Fabricators . | . . . . Repair Stations . | . . . . Recycling Units 2 | . 2 . . Scanalyzers . | . . . . Garrison Access . | . . . . Terminal Hacks 10 | . 3 . 7 Record 5 | . . . 5 Open Door 1 | . . . 1 Branch Access Points 1 | . 1 . . Terminal Index 1 | . 1 . . Zone Layout 1 | . 1 . . Release Object 1 | . . . 1 Fabricator Hacks . | . . . . Repair Station Hacks . | . . . . Recycling Unit Hacks 1 | . 1 . . Report Inventory 1 | . 1 . . Scanalyzer . | . . . . Garrison Access Hacks . | . . . . Unauthorized Hacks 10 | . 10 . . Terminals 9 | . 9 . . Assimilate 1 | . 1 . . Botnet 2 | . 2 . . Operators 1 | . 1 . . Skim 5 | . 5 . . Fabricators . | . . . . Repair Stations . | . . . . Recycling Units 1 | . 1 . . Tunnel 1 | . 1 . . Scanalyzers . | . . . . Garrison Access . | . . . . Data Cores Recovered . | . . . . Used . | . . . . Hacking Detections 4 | . 4 . . Full Trace Events . | . . . . Feedback Events . | . . . . Feedback Blocked . | . . . . Robot Schematics Acquired . | . . . . Robots Built . | . . . . Authchips . | . . . . Time . | . . . . Total Robot Build Rating . | . . . . Part Schematics Acquired . | . . . . Parts Built . | . . . . Authchips . | . . . . Time . | . . . . Total Part Build Rating . | . . . . Part Studies Acquired . | . . . . Parts Repaired . | . . . . Time . | . . . . Parts Recycled . | . . . . Recycled Matter . | . . . . Retrieved Matter . | . . . . Retrieved Components . | . . . . Parts Scanalyzed . | . . . . Part Schematics Acquired . | . . . . Parts Damaged . | . . . . Bothacking | -11 -10 -10 -10 ------------ Run | Yrd Mat Min Sub Used RIF Installer . | . . . . Robots Hacked . | . . . . Non-combat . | . . . . Combat . | . . . . Robot Hacks Applied . | . . . . Relay Couplers Released . | . . . . Fabnet Peak Effective % . | . . . . Robots Rewired . | . . . . Allies Hacked . | . . . . Hacks Repelled . | . . . . Allies | -11 -10 -10 -10 -------- Run | Yrd Mat Min Sub Total Allies 1 | . 1 . . Largest Group 1 | . 1 . . Highest-Rated Group 10 | . 10 . . Highest-Rated Ally 10 | . 10 . . Total Orders . | . . . . Ally Attacks . | . . . . Total Damage . | . . . . Kills . | . . . . Allies Corrupted . | . . . . Allies Melted . | . . . . Intel | -11 -10 -10 -10 ------- Run | Yrd Mat Min Sub Active Infowar (turns) 1985 | 18 1068 282 617 Structural 617 | . . . 617 Seismic 1368 | 18 1068 282 . Robot Analysis Total . | . . . . Derelict Logs Recovered 1 | . . . 1 Drone Launches . | . . . . Drone Recoveries . | . . . . Exploration | -11 -10 -10 -10 ------------- Run | Yrd Mat Min Sub Turns Passed 3340 | 101 1068 285 1886 Spaces Moved 1611 | 44 425 139 1003 Core 4 | 4 . . . Treads 92 | 40 50 . 2 Legs . | . . . . Wheels 1515 | . 375 139 1001 Hover . | . . . . Flight . | . . . . Fastest Speed 50 | 50 160 140 140 Average Speed 166 | 150 191 185 154 Slowest Speed 480 | 160 320 200 480 Overloaded Moves . | . . . . Propulsion Burnouts . | . . . . Robots Hopped . | . . . . Potential Cave-ins . | . . . . Cave-ins Triggered . | . . . . Exploration Rate (%) 40 | 4 67 26 66 Regions Visited 3 Branch Regions 2 Pre-discovered Areas 3 | . 3 . . Known Exits Taken 2 | . 1 1 . Unknown Exits Taken 1 | 1 . . . Scrap Searched 2 | . . 1 1 Spaces Dug 4 | . . . 4 Terrain Destroyed 88 | . 48 . 40 Melee . | . . . . Projectile 12 | . . . 12 AOE 76 | . 48 . 28 Terrain Rammed . | . . . . Walls Destroyed . | . . . . Machines Disabled . | . . . . Actions | -11 -10 -10 -10 --------- Run | Yrd Mat Min Sub Total 1999 | 64 591 157 1187 Wait 122 | . 83 2 37 Move 1609 | 44 424 138 1003 Hop . | . . . . Pick Up 40 | 7 15 5 13 Fast Attach 9 | 7 . 1 1 Attach 18 | . 5 1 12 Detach 1 | . . . 1 Swap 23 | . 6 3 14 Drop 18 | . 4 1 13 Fire 159 | 6 54 6 93 Melee . | . . . . Ram . | . . . . Kick . | . . . . Crush . | . . . . Escape Stasis . | . . . . Rewire . | . . . . Trap . | . . . . Miscellaneous . | . . . . Route ------- -11/Scrapyard -10/Materials (discovered 5 exits: *Mat x3 / *Min / Sub) -10/Mines (discovered 3 exits: Mat x2 / *Sub) -10/Subcaves (discovered 3 exits: [*Mat x2] / Rec) History --------- Turn | Location | Event 30 | -11/Scrapyard | Discovered new exit (range 15) 102 | -11/Scrapyard | Entered Materials 201 | -10/Materials | Identified exit to Mines 316 | -10/Materials | Build established: Mutant 483 | -10/Materials | Lost 3 parts (1p1n1w) 635 | -10/Materials | Discovered new exit (range 8) 811 | -10/Materials | Learned location of 2 exits from Mines 865 | -10/Materials | Loaded intel: 26 trap records 908 | -10/Materials | Learned Materials trap positions 942 | -10/Materials | Learned 2 Storage zone layouts 966 | -10/Materials | Identified exit to Materials 966 | -10/Materials | Identified exit to Subcaves 981 | -10/Materials | Learned Storage stockpile data 988 | -10/Materials | Learned location of Mines (-8) 1007 | -10/Materials | Learned Recycling recycling unit intel 1080 | -10/Materials | Learned location of 1 exit from Storage 1170 | -10/Materials | Entered Mines 1193 | -10/Mines | Met a Derelict bent on vengeance 1221 | -10/Mines | Found DCF Scrap (15 items) 1296 | -10/Mines | A weapon hastily lodged in a ceiling crevice suddenly fell to the ground 1362 | -10/Mines | Assembled infested the area 1444 | -10/Mines | Discovered exit to Subcaves (range 10) 1455 | -10/Mines | Entered Subcaves 1456 | -10/Subcaves | Approached by a straggling Scientist 1492 | -10/Subcaves | A swath of the cavern ceiling suddenly collapsed 1884 | -10/Subcaves | Disturbed a concealed Subdweller 1997 | -10/Subcaves | Build established: Derelict-Mutant 2141 | -10/Subcaves | Shifting Twisted Machinery released Sub. Beam Cannon 2183 | -10/Subcaves | Core integrity fell below 50% 2222 | -10/Subcaves | Lost 6 parts (1p2n1u2w) 2284 | -10/Subcaves | Shifting Twisted Machinery released Sub. Laser 2290 | -10/Subcaves | Shifting Twisted Machinery released Sub. Laser 2385 | -10/Subcaves | A Subdweller sparked back to life 2385 | -10/Subcaves | A Subdweller sparked back to life 2427 | -10/Subcaves | Core integrity fell below 20% 2449 | -10/Subcaves | Found Prototype Leg 2453 | -10/Subcaves | Lost 4 parts (1p2n1w) 2481 | -10/Subcaves | Build established: Mutant 2487 | -10/Subcaves | Discovered new exit (range 12) 2542 | -10/Subcaves | Visited Clippyterm 2546 | -10/Subcaves | Identified exit to Recycling 2727 | -10/Subcaves | Discovered new exit (range 6) 2954 | -10/Subcaves | A swath of the cavern ceiling suddenly collapsed 3020 | -10/Subcaves | Learned Materials emergency access door positions 3251 | -10/Subcaves | Found SUBCON Basin 3341 | -10/Subcaves | Destroyed self with Grenade Launcher Last Messages --------------- nuisance in their natural Subcaves environment where a certain balance has been achieved, there is a high probability that sudden introduction into previously unexposed areas could cause more extreme side effects. Take all precautions to prevent this from happening. >>Release Inventory Accessing inventory controls... Collection purity confirmed 100%... Ejecting SUBCON Basin... Delivery behind schedule, handle with care! 03244_ Dropped Scrap Shield. 03245_ Dropped Particle Gun. 03245_ Dropped Broken Mak. Laser. 03246_ Dropped Hcp. Matter Pod. 03246_ Dropped Sensor Array. 03247_ Dropped Signal Interpreter. 03247_ Dropped ECM Suite. 03248_ Dropped Lgt. Armor Plating. 03250_ Dropped Core Shielding. 03250_ Dropped Lgt. Assault Rifle. 03251_ Acquired SUBCON Basin. Map ----- +----------------------------------------------------+ | ??????????????#"" ["#" # # ##???????????????? | | ??????????????#""[!"#" # #???????????????? | | ??????????????#""!!! ## # ##??????????????? | | ??????????????#""!["#"X### ""# ##?????????????? | | ??????????????########## ""###"# #?????????????? | | ???????????????????????#####"####"##?????????????? | | ???????????????????????????## #####??????????????? | | ????????????????????????????##"""#???????????????? | | ?????????????????????????????##"##???????????????? | | ?????????????????????????????# ##????????????????? | | ?????????????????????????????# #?????????????????? | | ?????????????????????????????# ##????????????????? | | ??????????????????????????#??# ######????????????? | | ??????????????????????????#"?#""###"#????????????? | | ??????????????????????????#""##"""""#????????????? | | ????????????????????????????#"""#####????????????? | | ????????????????????????????##"""###?????????????? | | ?????????????????????????????###"#"#?????????????? | | ???????????????????????????????##"##?????????????? | | ???????????????????????????????##"###????????????? | | ????????????????????????????#### " #????????????? | | ????????????????????????????# ##????????????? | | ?????????????????????????## #????????????? | | #???????????????????###?## #????????????? | | #??????????? ????### ### ## #????????????? | | ########## ???# @ #### #????????????? | | ? [%* ???## #?## ##???????????? | | ?? [= ???># # #?# ##??####??### | | ?### %=% ?????# ##?# #### #?## | | ## [ ???????##### ##??# ## #?# | | #?????????????# #?## #### | | ###??????????## ### ## # | | ########???# ### = | | ## ## ##??# ## && | | ##### ##?# ## ## ! # | | # = ##?# ### ### #### ! | | # ### ## # # #??# # | | ### #??### # | | #?## ###????###### | | # ## ##??# # ## ###???????????? | | ## ### #???# ### ##### ###???????????? | | ?##??# ##???###?####???# #???????????? | | ?????## #####???????????????## ## ##???????????? | | ??????####????????????????????#######????????????? | | ?????????????????????????????????????????????????? | | ?????????????????????????????????????????????????? | | ?????????????????????????????????????????????????? | | ?????????????????????????????????????????????????? | | ?????????????????????????????????????????????????? | | ?????????????????????????????????????????????????? | +----------------------------------------------------+ Best States ------------- Heat Dissipation 25 Energy Generation 14 Energy Capacity 250 Matter Stores 300 Matter Capacity 300 Sight Range 16 Terrain Scan Density 10 Armor Coverage 150 Core Shielding 20 Evasion (%) 40 Recoil Reduction 2 Item Schematics ----------------- None Robot Schematics ------------------ None Fabricated ------------ Nothing Repaired ---------- Nothing Studied --------- None Alien Tech Used ----------------- None Achievements -------------- Art Critic Challenges ------------ None Game ------ Seed GreatCryofiberLoader Manual? 0 Play Time 00:20:31 Cumulative 301.7 hours Start 2025.12.01 @ 17:36:14 End 2025.12.01 @ 17:54:00 Sessions 1 Manual Loads 0 Difficulty Rogue Special Mode None Game No. 370 Rogue 370 Adventurer 0 Explorer 0 Win Type - Total 21 Types 13/0/3/1/1/0/1/1/0/1 Lore% 78 Gallery% 76 Achievement% 60 Wizard Run 0 Options --------- Layout 1 ASCII 0 Keyboard 1 Movement Numpad Keybinds 0 Fullscreen 2 Font 32/SmallcapsGlow Map View 77x35 Zoom Use 0% Tactical HUD 1 Map Filters NONE Filters NONE Steam 1 RUN: d2ea6559-1fdf-4848-869b-b58ae2202abd